fUSD/lending_fUSD_20240310
["ID","MTS","AMOUNT","RATE_DAILY","PERIOD"]
[318201222,1710112234648,-629.46171137,0.000148,2]
[318201223,1710112234658,-1900324.30607511,0.000148,2]
[318201224,1710112234674,-5070.11672384,0.000148,2]
[318201225,1710112234783,-1974.8225,0.000148,2]
[318201226,1710112234803,-1667.15976627,0.000148,2]
[318201227,1710112234816,-301.44505381,0.000148,2]
[318201228,1710112234827,-1374.76404,0.000148,2]
[318201229,1710112234838,-268.16578071,0.000148,2]
[318201230,1710112234851,-6518.33231651,0.000148,2]
[318201231,1710112234862,-257.55300002,0.000148,2]
[318201232,1710112234891,-1768.12564682,0.000148,2]
[318201233,1710112234903,-615407.32945764,0.000148,2]
[318201234,1710112234914,-95231.01003355,0.000148,2]
[318201235,1710112234926,-1328.26648197,0.000148,2]
[318201236,1710112234953,-1009.93000005,0.000148,2]
[318201237,1710112234965,-32369.55777475,0.000148,2]
[318201265,1710112238538,-307.025,0.000148,2]
[318201266,1710112238581,-2223377.85522913,0.000148,2]
[318201267,1710112238592,-191413.92368185,0.000148,2]
[318201268,1710112238606,-38010.0,0.000148,2]
[318201269,1710112238617,-17100.25,0.000148,2]
[318201270,1710112238650,-1023.938995,0.000148,2]
[318201271,1710112238664,-674.73640345,0.000148,2]
[318201272,1710112238702,-1244.68006504,0.000148,2]
[318201273,1710112238714,-7619.5,0.000148,2]
[318201274,1710112238725,-18415.75272557,0.000148,2]
[318201275,1710112238738,-1570.36580075,0.000148,2]
[318201276,1710112238752,-6710.30089838,0.000148,2]
[318201277,1710112238875,-13756.3620517,0.000148,2]
[318201278,1710112238935,-7246.167562,0.000148,2]
[318201280,1710112238946,-686.82,0.000148,2]
[318201282,1710112238958,-4878.80021856,0.000148,2]
[318201299,1710112240163,-430.87931215,0.000148,2]
[318201300,1710112240331,-3422.0,0.000148,2]
[318201301,1710112240344,-1125713.36740766,0.000148,2]
[318201302,1710112240356,-112661.33651481,0.000148,2]
[318201303,1710112240368,-258.39134671,0.000148,2]
[318201304,1710112240379,-410.65610556,0.000148,2]
[318201305,1710112240390,-1850.000324,0.000148,2]
[318201306,1710112240419,-3803.8,0.000148,2]
[318201307,1710112240438,-1064.94751501,0.000148,2]
[318201308,1710112240508,-11475.0,0.000148,2]
[318201311,1710112240519,-34050.0,0.000148,2]
[318201374,1710112243207,-47520.94933504,0.000148,2]
[318201377,1710112243265,-85749.91349983,0.000148,2]
[318201378,1710112243277,-214813.99999976,0.000148,2]
[318201379,1710112243289,-533.6094423,0.000148,2]
[318201380,1710112243323,-573.32730468,0.000148,2]
[318201381,1710112243334,-1205.31445656,0.000148,2]
[318201382,1710112243383,-2946.01985949,0.000148,2]
[318201383,1710112243395,-536.26410403,0.000148,2]
[318201384,1710112243407,-8393.52,0.000148,2]
[318201385,1710112243442,-1024.8731444,0.000148,2]
[318201386,1710112243463,-4092.45916938,0.000148,2]
[318201387,1710112243474,-408.67926718,0.000148,2]
[318201388,1710112243616,-3490761.29922575,0.000148,2]
[318201389,1710112243673,-470.90830768,0.000148,2]
[318201395,1710112246396,-1121.0,0.00014663,2]
[318201396,1710112246405,-1878.25809624,0.00014799,2]
[318201397,1710112246417,-544.82902781,0.00014799,2]
[318201398,1710112246426,-369.60047279,0.00014799,5]
[318201399,1710112246436,-152.23724258,0.00014799,5]
[318201403,1710112246989,-217.36323021,0.00014799,5]
[318201404,1710112246999,-281.63677029,0.00014799,2]
[318201405,1710112247019,-376.58720463,0.00014799,2]
[318201406,1710112247029,-3029.96279537,0.000148,2]
[318201407,1710112247041,-8894.02197415,0.000148,2]
[318201408,1710112247063,-3566.5434888,0.000148,2]
[318201410,1710112247074,-21444.08513838,0.000148,2]
[318201411,1710112247108,-36300.7083,0.000148,2]
[318201412,1710112247120,-13779.86651788,0.000148,2]
[318201413,1710112571150,1396.4275845,0.00018,30]
[318201414,1710112646192,763.66,0.00011372,2]
[318201415,1710112694170,211.4934239,0.00012,7]
[318201416,1710112793709,155.0,0.00012,2]
[318201417,1710112817655,155.0,0.00012,2]
[318201418,1710112833662,155.0,0.00012,2]
[318201419,1710112855654,155.0,0.00012,2]
[318201420,1710112877692,165.66463504,0.00012,2]
[318201421,1710112946646,450.6538361,0.00012,2]
[318201422,1710112962562,450.6538361,0.00012,2]
[318201423,1710112984575,450.6538361,0.00012,2]
[318201424,1710113004570,605.48175512,0.00012,2]
[318201425,1710113143660,783.78,0.00011071,2]
[318201426,1710113183920,2968.04940462,0.000153,15]
[318201430,1710113301199,30000.0,0.00021,60]
[318201431,1710113326175,30000.0,0.00021,60]
[318201432,1710113400794,610.02739246,0.00012483,2]
[318201438,1710113432322,-750.0,0.00012581,2]
[318201439,1710113435174,-1240.51238,0.00012581,2]
[318201440,1710113435186,-28.72689004,0.00012581,2]
[318201441,1710113435197,-1563.08225699,0.00012581,2]
[318201442,1710113435207,-703.46887389,0.00012582,2]
[318201443,1710113435217,-68.04172339,0.00012588,2]
[318201444,1710113435248,-147.1851878,0.00012588,2]
[318201445,1710113435258,-215.22691117,0.0001275,2]
[318201446,1710113435267,-150.0,0.00012893,2]
[318201447,1710113435277,-3227.94369517,0.00012894,4]
[318201448,1710113435286,-721.2,0.00012896,2]
[318201449,1710113435295,-215.22691117,0.00012912,2]
[318201450,1710113435305,-76.17813259,0.00012922,2]
[318201451,1710113435317,-173.82186741,0.00012922,2]
[318201452,1710113435327,-186.79,0.00012967,2]
[318201453,1710113435336,-200.0,0.0001298,2]
[318201454,1710113435345,-2106.65,0.00013002,2]
[318201455,1710113435355,-224.99,0.00013002,2]
[318201456,1710113435364,-499.99,0.00013002,2]
[318201457,1710113435376,-163.09517929,0.00013003,2]
[318201458,1710113435384,-18496.21,0.0001301,2]
[318201459,1710113435394,-243.74,0.00013012,2]
[318201460,1710113435403,-159.96,0.00013021,2]
[318201461,1710113435412,-278.8,0.00013142,2]
[318201462,1710113435423,-166.79,0.00013182,2]
[318201463,1710113435433,-159.96,0.00013247,2]
[318201464,1710113435442,-532.88,0.00013329,2]
[318201465,1710113435452,-783.78,0.00013335,2]
[318201466,1710113435461,-531.81,0.00013421,2]
[318201467,1710113435470,-2000.0,0.00013425,2]
[318201468,1710113435479,-159.96,0.00013473,2]
[318201469,1710113435489,-167.63,0.00013699,2]
[318201470,1710113435498,-2751.0,0.00013699,2]
[318201472,1710113435507,-500.0,0.00013699,2]
[318201474,1710113435517,-200.0,0.00013699,2]
[318201476,1710113435527,-500.0,0.00013699,2]
[318201478,1710113435536,-232.21,0.00013699,2]
[318201480,1710113435546,-5000.0,0.00013699,2]
[318201482,1710113435555,-1500.0,0.00013699,3]
[318201484,1710113435564,-159.96,0.00013699,2]
[318201486,1710113435573,-9999.99,0.00013854,2]
[318201488,1710113435583,-16154.829,0.00013855,2]
[318201490,1710113435592,-167.63,0.00013855,2]
[318201492,1710113435602,-15758.0010126,0.00013861,7]
[318201494,1710113435611,-167.88,0.00013922,2]
[318201496,1710113435620,-167.63,0.00014012,2]
[318201498,1710113435632,-947.8293856,0.00014058,2]
[318201500,1710113435643,-167.58,0.00014069,2]
[318201502,1710113435652,-167.88,0.00014107,2]
[318201504,1710113435661,-170.32,0.00014126,2]
[318201506,1710113435671,-167.63,0.00014168,2]
[318201508,1710113435680,-210.0,0.00014182,2]
[318201510,1710113435690,-221.0,0.00014284,2]
[318201512,1710113435699,-158.7,0.00014287,2]
[318201514,1710113435708,-167.88,0.00014293,2]
[318201516,1710113435718,-167.63,0.00014325,2]
[318201518,1710113435727,-167.88,0.00014478,2]
[318201520,1710113435736,-167.63,0.00014481,2]
[318201522,1710113435746,-2810.70410898,0.000145,2]
[318201524,1710113435756,-27900.70677928,0.000145,2]
[318201526,1710113435765,-721.2,0.00014508,2]
[318201528,1710113435774,-221.0,0.00014558,2]
[318201530,1710113435783,-150.0,0.00014585,2]
[318201532,1710113435793,-1342.902,0.00014599,2]
[318201534,1710113435802,-10223.7439,0.00014599,2]
[318201536,1710113435813,-167.63,0.00014638,2]
[318201538,1710113435822,-167.88,0.00014664,2]
[318201540,1710113435831,-417.7054,0.00014699,2]
[318201542,1710113435841,-2716.7572,0.00014699,2]
[318201544,1710113435851,-83008.5088,0.00014699,2]
[318201546,1710113435862,-11956.0823,0.00014699,2]
[318201548,1710113435872,-10000.0,0.000147,2]
[318201551,1710113435883,-186.19589539,0.000147,2]
[318201553,1710113435893,-6173.94388941,0.000147,2]
[318201554,1710113435902,-150.0,0.00014701,2]
[318201556,1710113435912,-163.09517929,0.00014706,2]
[318201559,1710113435921,-3222.38120504,0.00014732,2]
[318201561,1710113435931,-283.29471728,0.00014732,2]
[318201562,1710113435941,-278.8,0.00014785,2]
[318201564,1710113435951,-167.63,0.00014794,2]
[318201566,1710113435960,-3684.266025,0.00014797,2]
[318201568,1710113435970,-16939.0763633,0.00014797,9]
[318201571,1710113435991,-8313.66924829,0.00014797,9]
[318201574,1710113436005,-215.37916944,0.00014798,2]
[318201576,1710113436014,-160.64278934,0.00014798,2]
[318201577,1710113436025,-3594.13198502,0.00014798,2]
[318201579,1710113436038,-325.97634063,0.00014798,2]
[318201580,1710113436051,-253.93040229,0.00014798,2]
[318201581,1710113436060,-165.64285215,0.00014798,2]
[318201582,1710113436070,-197.11789868,0.00014798,2]
[318201583,1710113436087,-312.99858874,0.00014798,2]
[318201584,1710113436101,-168.13629017,0.00014798,2]
[318201585,1710113436111,-202.42288162,0.00014798,2]
[318201586,1710113436123,-9.10273049,0.00014798,2]
[318201587,1710113436134,-157.80439789,0.00014798,2]
[318201588,1710113436143,-1738.79287162,0.00014799,2]
[318201606,1710113438334,-957.6622,0.00014599,2]
[318201608,1710113438343,-7816.55019954,0.00014799,2]
[318201609,1710113438354,-2925.67685623,0.00014799,2]
[318201610,1710113438394,-163309.98541937,0.00014799,2]
[318201611,1710113438403,-727.60068978,0.00014799,2]
[318201612,1710113438413,-558.37061314,0.00014799,2]
[318201613,1710113438422,-35567.0,0.00014799,3]
[318201614,1710113438432,-300.80493029,0.00014799,2]
[318201615,1710113438442,-413.75655263,0.000148,2]
[318201616,1710113438452,-4208966.94561753,0.000148,2]
[318201617,1710113438464,-621.94,0.000148,2]
[318201618,1710113438476,-21790.3485207,0.000148,2]
[318201619,1710113438488,-85288.41219557,0.000148,2]
[318201620,1710113438500,-253.3534719,0.000148,2]
[318201621,1710113438511,-779.1885,0.000148,2]
[318201622,1710113438522,-1059.53492,0.000148,2]
[318201623,1710113438533,-375.61444,0.000148,2]
[318201624,1710113438545,-273.0,0.000148,2]
[318201625,1710113438585,-150.0,0.0001458,2]
[318201626,1710113438594,-446.05964064,0.000148,2]
[318201627,1710113438605,-277.0527081,0.000148,2]
[318201628,1710113438616,-251.60714365,0.000148,2]
[318201629,1710113438655,-54529.13594749,0.000148,2]
[318201630,1710113438700,-6062.9094044,0.000148,2]
[318201636,1710113440410,-361.0,0.00014284,2]
[318201637,1710113440420,-361.0,0.00014558,2]
[318201638,1710113440430,-150.0,0.00014655,2]
[318201639,1710113440440,-2134.1558,0.000148,2]
[318201640,1710113440462,-53600.47743161,0.000148,2]
[318201641,1710113440524,-608.2336114,0.000148,2]
[318201642,1710113440537,-446.82755966,0.000148,2]
[318201643,1710113440592,-514.83616153,0.000148,2]
[318201644,1710113440666,-299.82681749,0.000148,2]
[318201645,1710113440679,-86357.59777385,0.000148,2]
[318201646,1710113440722,-1743.29657938,0.000148,2]
[318201647,1710113440734,-4138.17551865,0.000148,2]
[318201648,1710113440746,-1361.40545559,0.000148,2]
[318201659,1710113443540,-216.86963432,0.00014799,2]
[318201660,1710113443549,-4598.38659629,0.000148,2]
[318201661,1710113443595,-2794.53343996,0.000148,2]
[318201662,1710113443606,-1758.49040274,0.000148,2]
[318201663,1710113443618,-3200.76872679,0.000148,2]
[318201664,1710113443629,-67676.94001168,0.000148,2]
[318201667,1710113443755,-624.59747725,0.000148,2]
[318201668,1710113443782,-10245349.1886263,0.000148,2]
[318201669,1710113443794,-2946.78347453,0.000148,2]
[318201670,1710113443806,-3437.4612,0.000148,2]
[318201671,1710113443822,-553.84670996,0.000148,2]
[318201672,1710113443833,-364356.68393074,0.000148,2]
[318201673,1710113443844,-300.175,0.000148,2]
[318201674,1710113443855,-5753.72585808,0.000148,2]
[318201679,1710113446557,-152.0,0.0001401,2]
[318201680,1710113446567,-152.0,0.00014284,2]
[318201681,1710113446576,-94.785,0.00014558,2]
[318201682,1710113446624,-57.215,0.00014558,2]
[318201683,1710113446634,-677.41793349,0.00014799,2]
[318201684,1710113446644,-1188.06706651,0.000148,2]
[318201685,1710113446656,-3087.51596,0.000148,2]
[318201686,1710113446743,-6156.91208171,0.000148,2]
[318201687,1710113446808,-1134.08411831,0.000148,2]
[318201688,1710113460483,177.0,0.0002358,120]
[318201689,1710113658223,1200.0,0.00023,120]
[318201690,1710113702669,946.8,0.00011378,2]
[318201692,1710114046511,250.0,0.00015,15]
[318201693,1710114064396,250.0,0.00015,15]
[318201694,1710114128768,250.0,0.00015,15]
[318201695,1710114130825,-2019.23927004,0.00012791,2]
[318201696,1710114130846,-1164.59003172,0.00012791,2]
[318201697,1710114130867,-4174.03872794,0.00012792,2]
[318201698,1710114130889,-703.46887389,0.00012793,2]
[318201699,1710114130910,-184.0,0.00012793,2]
[318201700,1710114130930,-534.67995873,0.00012794,2]
[318201701,1710114130951,-1059.22417395,0.00012794,2]
[318201702,1710114130972,-200.0,0.00012795,2]
[318201703,1710114130991,-150.0,0.00012909,2]
[318201704,1710114131011,-1302.56854749,0.0001291,2]
[318201705,1710114131032,-3290.73,0.00012911,2]
[318201706,1710114131789,188.68663444,0.0001279,2]
[318201707,1710114146441,180.1,0.00012978,2]
[318201708,1710114161441,250.0,0.00014,15]
[318201709,1710114171724,265.11011981,0.00015,15]
[318201710,1710114179870,250.0,0.00015,15]
[318201711,1710114184683,950.8,0.00011078,2]
[318201712,1710114221092,500.0,0.00012846,2]
[318201713,1710114243529,3573.68,0.00012845,2]
[318201714,1710114250220,4033.2,0.00012842,2]
[318201715,1710114267877,432.72,0.0001284,2]
[318201716,1710114330216,158.38,0.00012843,2]
[318201717,1710114330449,158.38,0.00012891,2]
[318201718,1710114330663,158.38,0.00012939,2]
[318201719,1710114330861,158.38,0.00012986,2]
[318201721,1710114382965,250.0,0.0001259,2]
[318201722,1710114414526,170.32,0.00012561,2]
[318201726,1710114504662,550.99,0.00012579,2]
[318201727,1710114522256,313.02751786,0.00012929,2]
[318201728,1710114601786,158.02124147,0.00012927,2]
[318201738,1710114632448,-265.02500025,0.00013022,2]
[318201739,1710114632513,-786.99865944,0.00013022,2]
[318201740,1710114632522,-730.98954968,0.00013023,2]
[318201785,1710114637589,-571.57899781,0.00013023,2]
[318201786,1710114637599,-3104.65899565,0.00013024,2]
[318201787,1710114637771,-1325.20677915,0.00013024,2]
[318201788,1710114637781,-313.02751784,0.00013027,2]
[318201789,1710114637790,-158.38,0.00013034,2]
[318201790,1710114637800,-158.02124134,0.00013038,2]
[318201791,1710114637809,-158.38,0.00013082,2]
[318201792,1710114637818,-313.02751784,0.00013125,2]
[318201793,1710114637827,-150.0,0.00013129,2]
[318201794,1710114637837,-150.0,0.00013129,2]
[318201795,1710114637846,-158.38,0.0001313,2]
[318201796,1710114637856,-1350.24,0.0001313,2]
[318201797,1710114637865,-158.02124134,0.00013149,2]
[318201799,1710114637874,-567.28,0.00013169,2]
[318201801,1710114637883,-499.99,0.00013169,2]
[318201802,1710114637893,-361.18,0.00013178,2]
[318201803,1710114637902,-158.38,0.00013178,2]
[318201804,1710114637911,-150.0,0.00013178,2]
[318201805,1710114637921,-499.99,0.00013196,2]
[318201806,1710114637930,-6103.0,0.00013196,2]
[318201807,1710114637939,-158.38,0.00013225,2]
[318201808,1710114637948,-158.02124134,0.00013259,2]
[318201809,1710114637958,-23069.46,0.00013267,2]
[318201810,1710114637968,-158.38,0.00013273,2]
[318201811,1710114637978,-151.12,0.00013296,2]
[318201812,1710114637988,-7062.24302157,0.00013298,2]
[318201813,1710114638001,-778.89,0.00013298,2]
[318201817,1710114639991,-2646.32123811,0.00013298,2]
[318201824,1710114640131,-1734.03110452,0.00013298,2]
[318201825,1710114640160,-2545.22170286,0.00013298,2]
[318201826,1710114640172,-444.17250199,0.00013307,2]
[318201827,1710114640182,-1109.14400463,0.00013308,2]
[318201828,1710114640201,-7590.33199891,0.00013308,2]
[318201829,1710114640246,-785.50619207,0.00013308,2]
[318201830,1710114640258,-515.00780439,0.00013308,2]
[318201831,1710114640268,-292.46,0.00013308,2]
[318201832,1710114640278,-150.0,0.00013315,2]
[318201833,1710114640288,-150.0,0.00013315,2]
[318201834,1710114640298,-150.0,0.00013315,2]
[318201835,1710114640308,-158.38,0.00013321,2]
[318201836,1710114640319,-950.8,0.00013341,2]
[318201837,1710114640328,-158.38,0.00013369,2]
[318201838,1710114640340,-158.02124134,0.0001337,2]
[318201839,1710114640351,-40.0613168,0.00013417,2]
[318201840,1710114640365,-118.3186832,0.00013417,2]
[318201841,1710114640375,-1160.33,0.00013425,2]
[318201842,1710114640386,-78.92511629,0.00013464,2]
[318201843,1710114640417,-79.45488371,0.00013464,2]
[318201844,1710114640437,-158.02124134,0.00013481,2]
[318201845,1710114640452,-158.38,0.00013512,2]
[318201846,1710114640471,-158.02124134,0.00013592,2]
[318201847,1710114640489,-569.88,0.00013699,2]
[318201848,1710114640508,-1287.51656631,0.00013699,3]
[318201849,1710114640525,-212.48343369,0.00013699,3]
[318201850,1710114640542,-500.0,0.00013699,2]
[318201851,1710114640558,-153.19,0.00013699,2]
[318201852,1710114640574,-500.0,0.00013699,2]
[318201853,1710114640590,-171.94,0.00013699,2]
[318201854,1710114640606,-5000.0,0.00013699,2]
[318201855,1710114640623,-176.64,0.00013699,2]
[318201856,1710114640643,-200.0,0.00013699,2]
[318201857,1710114640661,-199.3,0.00013699,2]
[318201858,1710114640678,-500.0,0.00013699,2]
[318201859,1710114640695,-158.02124134,0.00013703,2]
[318201860,1710114640711,-569.88,0.00013756,2]
[318201861,1710114640729,-273.87,0.00013769,2]
[318201862,1710114640742,-569.88,0.00013814,2]
[318201863,1710114640755,-569.88,0.00013872,2]
[318201864,1710114640771,-208.1834,0.0001389,2]
[318201865,1710114640786,-7304.0896,0.000139,2]
[318201866,1710114640798,-2225.43931027,0.000139,2]
[318201867,1710114640818,-384.105,0.000139,2]
[318201892,1710114642587,-158.02124134,0.00013814,2]
[318201894,1710114642597,-573.88778973,0.000139,2]
[318201896,1710114642606,-569.88,0.00013929,2]
[318201898,1710114642615,-76.54096893,0.00013973,2]
[318201899,1710114642912,-99.45903107,0.00013973,2]
[318201901,1710114642942,-569.88,0.00013987,2]
[318201902,1710114642958,-7044.90405162,0.00013999,2]
[318201903,1710114642968,-96176.60021732,0.00014,2]
[318201904,1710114642978,-569.88,0.00014045,2]
[318201905,1710114642987,-569.88,0.00014102,2]
[318201906,1710114642996,-33693.0,0.00014121,2]
[318201908,1710114643005,-569.88,0.0001416,2]
[318201910,1710114643013,-516.08,0.00014178,2]
[318201911,1710114643023,-414.43,0.00014178,2]
[318201912,1710114643034,-150.0,0.00014178,2]
[318201913,1710114643044,-785.01,0.00014178,2]
[318201914,1710114643054,-414.43,0.00014178,2]
[318201915,1710114643065,-150.0,0.00014178,2]
[318201916,1710114643074,-516.08,0.00014178,2]
[318201917,1710114643084,-414.43,0.00014178,2]
[318201918,1710114643094,-516.08,0.00014178,2]
[318201919,1710114643104,-516.08,0.00014178,2]
[318201920,1710114643114,-414.43,0.00014178,2]
[318201921,1710114643125,-569.88,0.00014218,2]
[318201922,1710114643135,-352.0,0.00014247,2]
[318201923,1710114643145,-176.0,0.00014247,2]
[318201924,1710114643155,-273.87,0.00014256,2]
[318201925,1710114643166,-569.88,0.00014275,2]
[318201926,1710114643177,-150.0,0.00014278,2]
[318201927,1710114643186,-414.43,0.00014278,2]
[318201928,1710114643196,-516.08,0.00014278,2]
[318201929,1710114643205,-569.88,0.00014333,2]
[318201930,1710114643214,-569.88,0.00014391,2]
[318201931,1710114643224,-409.0,0.000144,2]
[318201932,1710114643234,-291.0,0.000144,2]
[318201933,1710114643243,-210.0,0.00014442,2]
[318201934,1710114643253,-432.72,0.00014444,2]
[318201935,1710114643263,-569.88,0.00014448,2]
[318201936,1710114643273,-569.88,0.00014506,2]
[318201937,1710114643283,-271.909093,0.00014521,2]
[318201938,1710114643292,-352.0,0.00014521,2]
[318201939,1710114643302,-176.0,0.00014521,2]
[318201940,1710114643312,-1312.5828,0.00014552,2]
[318201941,1710114643321,-569.88,0.00014564,2]
[318201942,1710114643331,-302.1969,0.00014599,2]
[318201943,1710114643340,-989.117,0.00014599,2]
[318201944,1710114643352,-746.93751977,0.000146,2]
[318201945,1710114643361,-812.7119933,0.00014613,2]
[318201946,1710114643371,-569.88,0.00014621,2]
[318201947,1710114643380,-812.7119933,0.00014628,2]
[318201948,1710114643389,-409.0,0.0001464,2]
[318201949,1710114643399,-291.0,0.0001464,2]
[318201950,1710114643409,-812.7119933,0.00014642,2]
[318201951,1710114643420,-249.44687752,0.00014651,2]
[318201952,1710114643430,-812.7119933,0.00014657,2]
[318201953,1710114643439,-812.7119933,0.00014671,2]
[318201954,1710114643449,-569.88,0.00014679,2]
[318201955,1710114643458,-812.7119933,0.00014686,2]
[318201956,1710114643467,-326.25392121,0.0001469,2]
[318201957,1710114643477,-169.6388008,0.00014698,2]
[318201958,1710114643486,-583.80287966,0.00014698,2]
[318201959,1710114643495,-277.93905889,0.00014698,2]
[318201960,1710114643505,-499.59904705,0.00014698,2]
[318201961,1710114643514,-702.86649253,0.00014698,2]
[318201962,1710114643523,-224.66315933,0.00014698,2]
[318201963,1710114643532,-200.44374172,0.00014698,2]
[318201964,1710114643541,-117502.4873,0.00014699,2]
[318201965,1710114643551,-868.84208627,0.00014699,2]
[318201966,1710114643560,-868.84208625,0.000147,2]
[318201967,1710114643569,-4143.1091,0.000147,2]
[318201968,1710114643578,-15086.854,0.000147,2]
[318201969,1710114643587,-76113.64287656,0.000147,2]
[318201970,1710114643618,-168886.35712344,0.000147,2]
[318201971,1710114643628,-3658.1149,0.000147,2]
[318201972,1710114643638,-193.55403164,0.000147,2]
[318201973,1710114643648,-749.85599694,0.000147,2]
[318201974,1710114643657,-56215.80846442,0.000147,2]
[318201975,1710114643667,-812.7119933,0.000147,2]
[318201976,1710114643678,-2038.89550054,0.000147,2]
[318201977,1710114643688,-574.91379099,0.000147,2]
[318201978,1710114643697,-170.91032574,0.000147,2]
[318201979,1710114643707,-868.84208625,0.000147,2]
[318201980,1710114643717,-746.93751976,0.000147,2]
[318201981,1710114643726,-569.88,0.00014737,2]
[318201982,1710114643735,-273.87,0.00014743,2]
[318201983,1710114643744,-326.25392121,0.0001479,2]
[318201984,1710114643754,-326.25392121,0.0001479,2]
[318201985,1710114643763,-569.88,0.00014794,2]
[318201986,1710114643772,-176.64,0.00014795,2]
[318201987,1710114643781,-153.0,0.00014795,2]
[318201988,1710114643790,-352.0,0.00014795,2]
[318201989,1710114643799,-176.0,0.00014795,2]
[318201990,1710114643808,-470.7331518,0.00014797,2]
[318201991,1710114643818,-3909.41656985,0.00014798,2]
[318201992,1710114643827,-269.66269784,0.00014799,2]
[318201993,1710114643835,-27787.06186612,0.00014799,2]
[318201994,1710114643847,-1588.50853427,0.00014799,2]
[318201995,1710114643858,-4104.34269412,0.00014799,2]
[318201996,1710114643869,-5051.76100041,0.00014799,2]
[318201997,1710114643881,-5919.47820467,0.00014799,2]
[318201998,1710114643890,-8330.86724946,0.00014799,3]
[318201999,1710114643901,-2004.53603087,0.00014799,3]
[318202000,1710114643914,-2209.1656073,0.00014799,3]
[318202001,1710114644029,-999.7592673,0.00014799,3]
[318202002,1710114644060,-16455.67184507,0.00014799,3]
[318202003,1710114644070,-1000.0,0.00014799,2]
[318202004,1710114644079,-503.71164074,0.000148,2]
[318202005,1710114644089,-4677239.52631295,0.000148,2]
[318202006,1710114644112,-4672.35972753,0.000148,2]
[318202007,1710114644125,-3261.1387691,0.000148,2]
[318202008,1710114644137,-2581.46974898,0.000148,2]
[318202009,1710114644149,-1483.59952095,0.000148,2]
[318202010,1710114644168,-500.0,0.000148,2]
[318202011,1710114644182,-744967.83877867,0.000148,2]
[318202012,1710114644193,-389477.949257,0.000148,2]
[318202016,1710114645717,-2819.78577855,0.000148,2]
[318202017,1710114645778,-2158.5187323,0.000148,2]
[318202018,1710114645789,-398.415015,0.000148,2]
[318202019,1710114645840,-329.3869125,0.000148,2]
[318202020,1710114645851,-11506.2770372,0.000148,2]
[318202021,1710114645904,-1159.74,0.000148,2]
[318202022,1710114645915,-1373.29264309,0.000148,2]
[318202023,1710114646079,-934.51654593,0.000148,2]
[318202024,1710114646091,-1818.45898703,0.000148,2]
[318202025,1710114646103,-264.96943563,0.000148,2]
[318202026,1710114646116,-842.0,0.000148,2]
[318202027,1710114646134,-7742.19979564,0.000148,2]
[318202028,1710114646271,-45201.19958825,0.000148,2]
[318202033,1710114646337,-620.78967452,0.000148,2]
[318202035,1710114646348,-3387.13880929,0.000148,2]
[318202072,1710114735519,880.88,0.00011844,2]
[318202073,1710114816044,678.63821324,0.00012999,2]
[318202074,1710114827597,1583.99881988,0.00012999,2]
[318202075,1710114833753,678.63821324,0.00012999,2]
[318202076,1710114833931,4429.8657748,0.00012999,2]
[318202077,1710114835091,1052.02365969,0.00012999,2]
[318202078,1710114841487,157.64932231,0.00012999,2]
[318202079,1710114842762,558.37061314,0.00012999,2]
[318202080,1710114843101,542.47838598,0.00012999,2]
[318202081,1710114843481,755.36494461,0.00012999,2]
[318202082,1710114843931,1234.02736645,0.00012999,2]
[318202083,1710114845163,500.0,0.00012999,2]
[318202084,1710114846438,20230.45970913,0.00012999,2]
[318202091,1710115073046,160.14,0.00012341,2]
[318202092,1710115191523,1088989.69653178,0.0001601,15]